fUST/lending_fUST_20240715
["ID","MTS","AMOUNT","RATE_DAILY","PERIOD"]
[332157769,1720993843796,-528.87270732,0.00024657,2]
[332157772,1720993843807,-500.0,0.00024657,2]
[332157773,1720993843817,-500.0,0.00024657,2]
[332157775,1720993843827,-500.0,0.00024657,2]
[332157778,1720993843836,-500.0,0.00024657,2]
[332157779,1720993843846,-500.0,0.00024657,2]
[332157781,1720993843855,-506.88886871,0.00024657,2]
[332157784,1720993843865,-500.0,0.00024657,2]
[332157785,1720993843879,-500.0,0.00024657,2]
[332157787,1720993843888,-500.0,0.00024657,2]
[332157789,1720993843898,-500.0,0.00024657,2]
[332157791,1720993843907,-500.0,0.00024657,2]
[332157793,1720993843916,-500.0,0.00024657,2]
[332157795,1720993843925,-500.0,0.00024657,2]
[332157797,1720993843935,-37.5721344,0.00024657,2]
[332157839,1720993844495,-294.33249315,0.00018256,2]
[332157841,1720993844504,-462.4278656,0.00024657,2]
[332157843,1720993844514,-500.0,0.00024657,2]
[332157845,1720993844524,-500.0,0.00024657,2]
[332157847,1720993844533,-500.0,0.00024657,2]
[332157849,1720993844543,-511.48642617,0.00024657,2]
[332157851,1720993844554,-500.0,0.00024657,2]
[332157853,1720993844563,-485.58556798,0.00024657,2]
[332158017,1720993846112,-294.33249315,0.00020356,2]
[332158019,1720993846121,-163.84049572,0.00024188,2]
[332158439,1720993964403,155.14626466,0.00014999,2]
[332158440,1720993985551,158.32455808,0.00014999,2]
[332158441,1720993994375,275.36317654,0.00014999,2]
[332158443,1720994012069,309.30409356,0.00014999,2]
[332158444,1720994013081,154.68290005,0.00014999,2]
[332158456,1720994127287,8512.4600079,0.00015252,2]
[332158485,1720994205579,287.42129962,0.00015252,2]
[332158486,1720994206908,879.09782004,0.00014999,2]
[332158489,1720994290932,308.42,0.00019,10]
[332158497,1720994311057,151.15,0.0001799,62]
[332158518,1720994364699,532.42648906,0.00014999,2]
[332158522,1720994485324,24900.0,0.0001524,2]
[332158530,1720994537198,1215.3704454,0.0001524,2]
[332158533,1720994588459,250.0,0.00015354,2]
[332158534,1720994588742,250.0,0.00015396,2]
[332158535,1720994588957,250.0,0.00015438,2]
[332158536,1720994589162,250.0,0.00015481,2]
[332158537,1720994589417,250.0,0.00015523,2]
[332158538,1720994589638,250.0,0.00015565,2]
[332158540,1720994589843,250.0,0.00015607,2]
[332158541,1720994590126,250.0,0.00015649,2]
[332158542,1720994590349,250.0,0.00015691,2]
[332158543,1720994614590,412.88555985,0.00014999,2]
[332158544,1720994619576,1811.3991765,0.0001506,2]
[332158545,1720994625752,180.0289481,0.00014999,2]
[332158546,1720994644865,885.90879381,0.00014999,2]
[332158547,1720994648576,157.88971255,0.00014999,2]
[332158548,1720994749229,195.98973,0.00015066,2]
[332158552,1720994791542,155.18379875,0.00014999,2]
[332158553,1720994834290,180.0289481,0.00014999,2]
[332158558,1720994944589,155.43553926,0.00014999,2]
[332158559,1720994950962,348.36389327,0.00014999,2]
[332158561,1720994965608,-250.0,0.00015733,2]
[332158563,1720994965649,-250.0,0.00015775,2]
[332158564,1720994965688,-250.0,0.00015817,2]
[332158565,1720994965729,-250.0,0.00015859,2]
[332158566,1720994965769,-36.23474048,0.00015902,2]
[332158567,1720994965819,-213.76525952,0.00015902,2]
[332158568,1720994965859,-250.0,0.00015944,2]
[332158570,1720994990572,-250.0,0.00015986,2]
[332158571,1720994990623,-250.0,0.00016028,2]
[332158572,1720994990663,-250.0,0.0001607,2]
[332158573,1720994990701,-203.19755358,0.00016083,2]
[332158574,1720994990742,-113.0371869,0.00016112,2]
[332158575,1720994990796,-136.9628131,0.00016112,2]
[332158577,1720995020941,24900.0,0.00015244,2]
[332158670,1720995038105,-206.29616559,0.00016154,2]
[332158671,1720995038115,-250.0,0.00016154,2]
[332158672,1720995038124,-300.0,0.00016242,2]
[332158673,1720995038134,-300.0,0.00016242,2]
[332158674,1720995038144,-376.38905215,0.00016244,2]
[332158675,1720995038155,-500.0,0.00016244,2]
[332158676,1720995038164,-237.10897828,0.00016244,2]
[332158677,1720995038174,-500.0,0.00016244,2]
[332158678,1720995038183,-500.0,0.00016244,2]
[332158679,1720995038193,-216.62883372,0.00016244,2]
[332158680,1720995038202,-161.8607942,0.00016244,2]
[332158682,1720995038212,-500.0,0.00016244,2]
[332158684,1720995038222,-246.16654932,0.00016244,2]
[332158686,1720995038232,-500.0,0.00016244,2]
[332158688,1720995038241,-500.0,0.00016244,2]
[332158689,1720995038251,-500.0,0.00016244,2]
[332158691,1720995038261,-500.0,0.00016244,2]
[332158693,1720995038271,-500.0,0.00016244,2]
[332158695,1720995038281,-251.75918459,0.00016244,2]
[332158697,1720995038294,-500.0,0.00016244,2]
[332158699,1720995038303,-500.0,0.00016244,2]
[332158700,1720995038320,-500.0,0.00016244,2]
[332158702,1720995038331,-500.0,0.00016244,2]
[332158704,1720995038340,-500.0,0.00016244,2]
[332158706,1720995038349,-325.05644924,0.00016244,2]
[332158708,1720995038358,-500.0,0.00016244,2]
[332158710,1720995038369,-500.0,0.00016244,2]
[332158711,1720995038378,-500.0,0.00016244,2]
[332158713,1720995038387,-500.0,0.00016244,2]
[332158715,1720995038396,-500.0,0.00016244,2]
[332158717,1720995038405,-500.0,0.00016244,2]
[332158718,1720995038416,-500.0,0.00016244,2]
[332158719,1720995038426,-427.53951447,0.00016244,2]
[332158720,1720995038435,-500.0,0.00016244,2]
[332158722,1720995038445,-500.0,0.00016244,2]
[332158724,1720995038454,-467.23590659,0.00016244,2]
[332158726,1720995038464,-178.09708026,0.00016244,2]
[332158727,1720995038474,-500.0,0.00016244,2]
[332158728,1720995038484,-500.0,0.00016244,2]
[332158729,1720995038494,-500.0,0.00016244,2]
[332158730,1720995038504,-289.6670624,0.00016244,2]
[332158731,1720995038513,-157.57293277,0.00016244,2]
[332158732,1720995038523,-62264.38755,0.00016245,2]
[332158733,1720995038532,-57284.82915488,0.00016254,2]
[332158734,1720995038542,-21266.34724239,0.00016255,2]
[332158735,1720995038552,-34969.80169059,0.00016255,2]
[332158736,1720995038564,-42279.12347767,0.00016255,2]
[332158737,1720995038574,-156.3226906,0.00016255,2]
[332158738,1720995038585,-420.0,0.00017866,2]
[332158740,1720995038595,-62264.38755,0.0001799,2]
[332158741,1720995038605,-100000.0,0.00018,2]
[332158742,1720995038615,-1041.86176569,0.00018,2]
[332158743,1720995038624,-233.39453665,0.00018798,2]
[332158744,1720995038634,-647.63565362,0.000189,2]
[332158745,1720995038644,-577.32995707,0.00019178,10]
[332158746,1720995038654,-161.558367,0.00019178,2]
[332158747,1720995038664,-587.0,0.00019653,2]
[332158748,1720995038804,-906.32194254,0.0001999,2]
[332158866,1720995040267,-301.2356226,0.00016155,2]
[332158868,1720995040277,-92490.25938256,0.0001999,2]
[332158870,1720995040287,-4210.05296113,0.0002,5]
[332158873,1720995040301,-139259.80377231,0.0002,2]
[332158875,1720995040311,-764.43027422,0.0002,2]
[332158877,1720995040320,-202.09799933,0.0002,2]
[332158879,1720995040330,-620.153913,0.00021096,2]
[332158881,1720995040340,-1001.4068864,0.0002143,2]
[332158883,1720995040349,-31132.193775,0.00021498,3]
[332158884,1720995040358,-823.0,0.00021618,2]
[332158887,1720995040369,-266.90677613,0.00021917,2]
[332158888,1720995040379,-305.44359907,0.00021917,2]
[332158890,1720995040388,-435.0,0.00021917,2]
[332158892,1720995040397,-197.47648542,0.00021917,2]
[332158894,1720995040407,-1339.09422245,0.00023,2]
[332158896,1720995040415,-20729.83312244,0.00023455,2]
[332158898,1720995040425,-1152.0,0.0002378,2]
[332158900,1720995040435,-647.63565362,0.000239,2]
[332158902,1720995040444,-225.9011813,0.00024188,2]
[332158904,1720995040454,-1000.0,0.00024188,2]
[332158906,1720995040463,-428.62808121,0.00024188,2]
[332158908,1720995040472,-893.2074911,0.00024188,2]
[332158910,1720995040482,-6871.28306613,0.00024188,2]
[332158912,1720995040491,-88097.43122635,0.00024188,2]
[332158914,1720995040501,-5292.88975486,0.00024417,2]
[332158916,1720995040510,-366.6405652,0.00024578,2]
[332158918,1720995040520,-236.9,0.00024583,2]
[332158920,1720995040529,-51557.48886201,0.00024657,5]
[332158922,1720995040539,-560.19719436,0.00024657,2]
[332158924,1720995040548,-520.75123233,0.00024657,2]
[332158926,1720995040558,-500.0,0.00024657,2]
[332158927,1720995040568,-500.0,0.00024657,2]
[332158929,1720995040577,-500.0,0.00024657,2]
[332158931,1720995040587,-500.0,0.00024657,2]
[332158933,1720995040596,-500.0,0.00024657,2]
[332158935,1720995040605,-502.74929534,0.00024657,2]
[332158937,1720995040614,-500.0,0.00024657,2]
[332158939,1720995040623,-500.0,0.00024657,2]
[332158941,1720995040632,-500.0,0.00024657,2]
[332158943,1720995040642,-500.0,0.00024657,2]
[332158945,1720995040651,-626.11408275,0.00024657,2]
[332158947,1720995040661,-500.0,0.00024657,2]
[332158949,1720995040670,-500.0,0.00024657,2]
[332158951,1720995040680,-500.0,0.00024657,2]
[332158953,1720995040690,-500.0,0.00024657,2]
[332158955,1720995040699,-500.0,0.00024657,2]
[332158957,1720995040709,-500.0,0.00024657,2]
[332158959,1720995040719,-504.05971922,0.00024657,2]
[332158961,1720995040729,-500.0,0.00024657,2]
[332158963,1720995040739,-500.0,0.00024657,2]
[332158965,1720995040748,-500.0,0.00024657,2]
[332158967,1720995040758,-500.0,0.00024657,2]
[332158969,1720995040768,-509.73621863,0.00024657,2]
[332158971,1720995040778,-500.0,0.00024657,2]
[332158974,1720995040788,-500.0,0.00024657,2]
[332158976,1720995040798,-500.0,0.00024657,2]
[332158978,1720995040808,-500.0,0.00024657,2]
[332158980,1720995040818,-500.0,0.00024657,2]
[332158982,1720995040827,-500.0,0.00024657,2]
[332158984,1720995040837,-500.0,0.00024657,2]
[332158986,1720995040846,-500.0,0.00024657,2]
[332158988,1720995040856,-500.0,0.00024657,2]
[332158990,1720995040866,-500.0,0.00024657,2]
[332158992,1720995040875,-500.0,0.00024657,2]
[332158994,1720995040884,-500.0,0.00024657,2]
[332158996,1720995040894,-500.0,0.00024657,2]
[332158998,1720995040904,-511.76474404,0.00024657,2]
[332159000,1720995040913,-500.0,0.00024657,2]
[332159002,1720995040922,-500.0,0.00024657,2]
[332159004,1720995040932,-500.0,0.00024657,2]
[332159006,1720995040942,-500.0,0.00024657,2]
[332159008,1720995040951,-500.0,0.00024657,2]
[332159010,1720995040960,-500.0,0.00024657,2]
[332159012,1720995040970,-500.0,0.00024657,2]
[332159014,1720995040980,-500.0,0.00024657,2]
[332159016,1720995040990,-377.01129531,0.00024657,2]
[332159018,1720995041000,-500.0,0.00024657,2]
[332159020,1720995041009,-512.04936283,0.00024657,2]
[332159022,1720995041019,-508.43858548,0.00024657,2]
[332159024,1720995041029,-500.0,0.00024657,2]
[332159026,1720995041038,-530.63060473,0.00024657,2]
[332159028,1720995041048,-500.0,0.00024657,2]
[332159030,1720995041058,-500.0,0.00024657,2]
[332159032,1720995041068,-500.0,0.00024657,2]
[332159033,1720995041077,-500.0,0.00024657,2]
[332159035,1720995041086,-500.0,0.00024657,2]
[332159037,1720995041095,-500.0,0.00024657,2]
[332159039,1720995041105,-500.0,0.00024657,2]
[332159041,1720995041115,-500.0,0.00024657,2]
[332159043,1720995041123,-500.0,0.00024657,2]
[332159045,1720995041133,-500.0,0.00024657,2]
[332159047,1720995041142,-528.03008142,0.00024657,2]
[332159050,1720995041152,-500.0,0.00024657,2]
[332159052,1720995041161,-500.0,0.00024657,2]
[332159054,1720995041170,-500.0,0.00024657,2]
[332159056,1720995041180,-500.0,0.00024657,2]
[332159058,1720995041189,-500.0,0.00024657,2]
[332159060,1720995041199,-500.0,0.00024657,2]
[332159062,1720995041208,-500.0,0.00024657,2]
[332159064,1720995041218,-500.0,0.00024657,2]
[332159066,1720995041227,-503.41116129,0.00024657,2]
[332159068,1720995041236,-500.0,0.00024657,2]
[332159070,1720995041245,-507.08457896,0.00024657,2]
[332159072,1720995041255,-500.0,0.00024657,2]
[332159074,1720995041265,-501.5819978,0.00024657,2]
[332159075,1720995041275,-500.0,0.00024657,2]
[332159077,1720995041285,-500.0,0.00024657,2]
[332159079,1720995041299,-500.0,0.00024657,2]
[332159081,1720995041308,-500.0,0.00024657,2]
[332159084,1720995041319,-500.0,0.00024657,2]
[332159086,1720995041330,-500.0,0.00024657,2]
[332159088,1720995041339,-500.0,0.00024657,2]
[332159090,1720995041349,-500.0,0.00024657,2]
[332159091,1720995041358,-504.62117378,0.00024657,2]
[332159093,1720995041368,-500.0,0.00024657,2]
[332159095,1720995041378,-500.0,0.00024657,2]
[332159097,1720995041388,-500.0,0.00024657,2]
[332159099,1720995041397,-500.0,0.00024657,2]
[332159101,1720995041406,-500.0,0.00024657,2]
[332159103,1720995041416,-500.0,0.00024657,2]
[332159105,1720995041425,-510.34269952,0.00024657,2]
[332159107,1720995041434,-500.0,0.00024657,2]
[332159109,1720995041444,-500.0,0.00024657,2]
[332159111,1720995041454,-500.0,0.00024657,2]
[332159113,1720995041463,-500.0,0.00024657,2]
[332159115,1720995041473,-500.0,0.00024657,2]
[332159118,1720995041483,-500.0,0.00024657,2]
[332159120,1720995041492,-500.0,0.00024657,2]
[332159122,1720995041501,-151.0,0.00024657,7]
[332159124,1720995041511,-500.0,0.00024657,2]
[332159126,1720995041520,-500.0,0.00024657,2]
[332159128,1720995041529,-500.0,0.00024657,2]
[332159130,1720995041539,-151.0,0.00024657,7]
[332159132,1720995041549,-500.0,0.00024657,2]
[332159134,1720995041558,-500.0,0.00024657,2]
[332159136,1720995041570,-500.0,0.00024657,2]
[332159138,1720995041579,-500.0,0.00024657,2]
[332159140,1720995041589,-500.0,0.00024657,2]
[332159142,1720995041599,-500.0,0.00024657,2]
[332159144,1720995041608,-500.0,0.00024657,2]
[332159146,1720995041618,-500.0,0.00024657,2]
[332159148,1720995041628,-502.67463799,0.00024657,2]
[332159150,1720995041637,-500.0,0.00024657,2]
[332159152,1720995041646,-500.0,0.00024657,2]
[332159154,1720995041656,-500.0,0.00024657,2]
[332159156,1720995041666,-500.0,0.00024657,2]
[332159158,1720995041675,-500.0,0.00024657,2]
[332159160,1720995041685,-500.0,0.00024657,2]
[332159162,1720995041695,-500.0,0.00024657,2]
[332159164,1720995041704,-504.93201498,0.00024657,2]
[332159166,1720995041714,-500.0,0.00024657,2]
[332159168,1720995041723,-500.0,0.00024657,2]
[332159170,1720995041732,-500.0,0.00024657,2]
[332159172,1720995041742,-414.18597544,0.00024657,2]
[332159174,1720995041752,-500.0,0.00024657,2]
[332159176,1720995041761,-500.0,0.00024657,2]
[332159178,1720995041770,-500.0,0.00024657,2]
[332159180,1720995041780,-500.0,0.00024657,2]
[332159182,1720995041789,-500.0,0.00024657,2]
[332159184,1720995041798,-501.83082212,0.00024657,2]
[332159186,1720995041808,-500.0,0.00024657,2]
[332159188,1720995041819,-500.0,0.00024657,2]
[332159190,1720995041828,-500.0,0.00024657,2]
[332159192,1720995041837,-151.0,0.00024657,7]
[332159194,1720995041846,-500.0,0.00024657,2]
[332159196,1720995041855,-500.0,0.00024657,2]
[332159198,1720995041864,-500.0,0.00024657,2]
[332159200,1720995041874,-500.0,0.00024657,2]
[332159202,1720995041883,-500.0,0.00024657,2]
[332159204,1720995041893,-500.0,0.00024657,2]
[332159206,1720995041902,-537.50531929,0.00024657,2]
[332159208,1720995041911,-500.0,0.00024657,2]
[332159210,1720995041920,-506.88886871,0.00024657,2]
[332159211,1720995041929,-500.0,0.00024657,2]
[332159213,1720995041938,-503.57907051,0.00024657,2]
[332159215,1720995041947,-500.0,0.00024657,2]
[332159217,1720995041956,-500.0,0.00024657,2]
[332159219,1720995041966,-500.0,0.00024657,2]
[332159221,1720995041975,-500.0,0.00024657,2]
[332159223,1720995041985,-500.0,0.00024657,2]
[332159225,1720995041994,-500.0,0.00024657,2]
[332159227,1720995042003,-602.97,0.00024657,2]
[332159229,1720995042013,-500.0,0.00024657,2]
[332159231,1720995042022,-500.0,0.00024657,2]
[332159233,1720995042031,-503.65384183,0.00024657,2]
[332159235,1720995042040,-511.07082902,0.00024657,2]
[332159237,1720995042050,-500.0,0.00024657,2]
[332159239,1720995042059,-500.0,0.00024657,2]
[332159241,1720995042071,-500.0,0.00024657,2]
[332159243,1720995042080,-500.0,0.00024657,2]
[332159245,1720995042091,-500.0,0.00024657,2]
[332159247,1720995042101,-500.0,0.00024657,2]
[332159248,1720995042110,-509.33569418,0.00024657,2]
[332159250,1720995042118,-500.0,0.00024657,2]
[332159252,1720995042127,-500.0,0.00024657,2]
[332159254,1720995042136,-500.0,0.00024657,2]
[332159256,1720995042146,-500.0,0.00024657,2]
[332159258,1720995042156,-500.0,0.00024657,2]
[332159260,1720995042165,-500.0,0.00024657,2]
[332159262,1720995042175,-500.0,0.00024657,2]
[332159264,1720995042184,-500.0,0.00024657,2]
[332159266,1720995042193,-500.0,0.00024657,2]
[332159268,1720995042202,-500.0,0.00024657,2]
[332159270,1720995042211,-500.0,0.00024657,2]
[332159272,1720995042221,-500.0,0.00024657,2]
[332159274,1720995042230,-500.0,0.00024657,2]
[332159275,1720995042239,-500.0,0.00024657,2]
[332159277,1720995042249,-500.0,0.00024657,2]
[332159279,1720995042258,-500.0,0.00024657,2]
[332159281,1720995042267,-500.0,0.00024657,2]
[332159283,1720995042276,-500.0,0.00024657,2]
[332159285,1720995042289,-500.0,0.00024657,2]
[332159287,1720995042300,-500.0,0.00024657,2]
[332159289,1720995042309,-500.0,0.00024657,2]
[332159291,1720995042323,-500.0,0.00024657,2]
[332159293,1720995042332,-500.0,0.00024657,2]
[332159295,1720995042341,-500.0,0.00024657,2]
[332159297,1720995042350,-500.0,0.00024657,2]
[332159299,1720995042359,-500.0,0.00024657,2]
[332159301,1720995042369,-500.0,0.00024657,2]
[332159303,1720995042379,-500.0,0.00024657,2]
[332159304,1720995042388,-500.0,0.00024657,2]
[332159306,1720995042398,-500.0,0.00024657,2]
[332159308,1720995042407,-500.0,0.00024657,2]
[332159311,1720995042416,-500.0,0.00024657,2]
[332159313,1720995042426,-500.0,0.00024657,2]
[332159314,1720995042435,-500.0,0.00024657,2]
[332159316,1720995042444,-500.0,0.00024657,2]
[332159318,1720995042453,-518.95916446,0.00024657,2]
[332159320,1720995042462,-500.0,0.00024657,2]
[332159322,1720995042472,-500.0,0.00024657,2]
[332159324,1720995042481,-500.0,0.00024657,2]
[332159326,1720995042490,-500.0,0.00024657,2]
[332159328,1720995042500,-415.87985222,0.00024657,2]
[332159331,1720995042509,-500.0,0.00024657,2]
[332159334,1720995042519,-500.0,0.00024657,2]
[332159337,1720995042528,-500.3066454,0.00024657,2]
[332159341,1720995042538,-500.0,0.00024657,2]
[332159343,1720995042547,-497.47301127,0.00024657,2]
[332159347,1720995042556,-500.0,0.00024657,2]
[332159350,1720995042568,-500.0,0.00024657,2]
[332159353,1720995042577,-500.0,0.00024657,2]
[332159356,1720995042586,-548.64790125,0.00024657,2]
[332159358,1720995042596,-500.0,0.00024657,2]
[332159373,1720995042605,-500.0,0.00024657,2]
[332159375,1720995042713,-546.16,0.00024657,2]
[332159377,1720995042723,-511.32049319,0.00024657,2]
[332159380,1720995042732,-500.0,0.00024657,2]
[332159384,1720995042743,-500.0,0.00024657,2]
[332159387,1720995042753,-500.0,0.00024657,2]
[332159390,1720995042763,-500.0,0.00024657,2]
[332159393,1720995042773,-500.0,0.00024657,2]
[332159396,1720995042782,-242.56428801,0.00024657,2]
[332159399,1720995042792,-500.0,0.00024657,2]
[332159402,1720995042801,-500.0,0.00024657,2]
[332159405,1720995042811,-500.0,0.00024657,2]
[332159410,1720995042821,-500.0,0.00024657,2]
[332159413,1720995042831,-564.74904182,0.00024657,2]
[332159416,1720995042840,-500.0,0.00024657,2]
[332159419,1720995042849,-500.0,0.00024657,2]
[332159422,1720995042859,-500.0,0.00024657,2]
[332159425,1720995042868,-500.0,0.00024657,2]
[332159428,1720995042877,-500.0,0.00024657,2]
[332159431,1720995042886,-500.0,0.00024657,2]
[332159434,1720995042896,-500.0,0.00024657,2]
[332159437,1720995042905,-500.0,0.00024657,2]
[332159440,1720995042914,-500.0,0.00024657,2]
[332159443,1720995042923,-500.0,0.00024657,2]
[332159446,1720995042933,-500.0,0.00024657,2]
[332159448,1720995042942,-500.0,0.00024657,2]
[332159451,1720995042951,-500.0,0.00024657,2]
[332159454,1720995042961,-500.0,0.00024657,2]
[332159457,1720995042971,-500.0,0.00024657,2]
[332159460,1720995042980,-500.0,0.00024657,2]
[332159463,1720995042989,-524.13072905,0.00024657,2]
[332159466,1720995042998,-152.579321,0.00024657,7]
[332159469,1720995043007,-500.86702552,0.00024657,2]
[332159472,1720995043017,-500.0,0.00024657,2]
[332159475,1720995043026,-500.0,0.00024657,2]
[332159478,1720995043036,-500.0,0.00024657,2]
[332159481,1720995043045,-500.0,0.00024657,2]
[332159483,1720995043055,-500.0,0.00024657,2]
[332159485,1720995043065,-500.0,0.00024657,2]
[332159488,1720995043074,-500.0,0.00024657,2]
[332159490,1720995043083,-262.104553,0.00024657,7]
[332159493,1720995043093,-262.104553,0.00024657,7]
[332159497,1720995043103,-500.0,0.00024657,2]
[332159499,1720995043112,-411.90099469,0.00024657,2]
[332159502,1720995043122,-500.0,0.00024657,2]
[332159505,1720995043132,-500.0,0.00024657,2]
[332159508,1720995043141,-262.104553,0.00024657,7]
[332159511,1720995043151,-262.104553,0.00024657,7]
[332159514,1720995043160,-500.0,0.00024657,2]
[332159517,1720995043171,-500.0,0.00024657,2]
[332159520,1720995043180,-505.02961316,0.00024657,2]
[332159524,1720995043189,-500.0,0.00024657,2]
[332159527,1720995043198,-500.0,0.00024657,2]
[332159529,1720995043207,-502.87580366,0.00024657,2]
[332159532,1720995043216,-502.45806969,0.00024657,2]
[332159535,1720995043225,-500.0,0.00024657,2]
[332159537,1720995043235,-500.0,0.00024657,2]
[332159538,1720995043244,-500.0,0.00024657,2]
[332159539,1720995043253,-500.0,0.00024657,2]
[332159540,1720995043263,-500.0,0.00024657,2]
[332159541,1720995043274,-274.43205086,0.00024657,2]
[332159542,1720995043284,-500.0,0.00024657,2]
[332159543,1720995043298,-500.0,0.00024657,2]
[332159544,1720995043308,-1500.0,0.00024657,2]
[332159545,1720995043319,-500.0,0.00024657,2]
[332159546,1720995043328,-500.0,0.00024657,2]
[332159547,1720995043340,-500.0,0.00024657,2]
[332159548,1720995043352,-500.0,0.00024657,2]
[332159549,1720995043361,-763.88,0.00024657,2]
[332159550,1720995043372,-500.0,0.00024657,2]
[332159551,1720995043381,-500.0,0.00024657,2]
[332159553,1720995043393,-500.0,0.00024657,2]
[332159556,1720995043402,-153.31398,0.00024657,7]
[332159558,1720995043411,-500.0,0.00024657,2]
[332159560,1720995043421,-500.0,0.00024657,2]
[332159562,1720995043431,-500.0,0.00024657,2]
[332159564,1720995043440,-500.0,0.00024657,2]
[332159566,1720995043449,-500.0,0.00024657,2]
[332159568,1720995043458,-500.0,0.00024657,2]
[332159570,1720995043468,-500.0,0.00024657,2]
[332159572,1720995043479,-500.0,0.00024657,2]
[332159574,1720995043490,-500.0,0.00024657,2]
[332159576,1720995043499,-500.0,0.00024657,2]
[332159578,1720995043510,-500.0,0.00024657,2]
[332159580,1720995043519,-500.0,0.00024657,2]
[332159582,1720995043529,-500.0,0.00024657,2]
[332159584,1720995043538,-500.0,0.00024657,2]
[332159586,1720995043547,-500.0,0.00024657,2]
[332159588,1720995043556,-500.0,0.00024657,2]
[332159590,1720995043567,-200.0,0.00024657,2]
[332159592,1720995043577,-500.0,0.00024657,2]
[332159594,1720995043586,-500.0,0.00024657,2]
[332159596,1720995043595,-500.0,0.00024657,2]
[332159598,1720995043605,-500.0,0.00024657,2]
[332159600,1720995043614,-500.0,0.00024657,2]
[332159602,1720995043623,-500.0,0.00024657,2]
[332159604,1720995043632,-500.0,0.00024657,2]
[332159606,1720995043642,-500.0,0.00024657,2]
[332159608,1720995043651,-500.0,0.00024657,2]
[332159610,1720995043660,-510.16009445,0.00024657,2]
[332159612,1720995043669,-500.0,0.00024657,2]
[332159614,1720995043679,-500.0,0.00024657,2]
[332159615,1720995043690,-500.0,0.00024657,2]
[332159617,1720995043699,-500.0,0.00024657,2]
[332159619,1720995043708,-500.0,0.00024657,2]
[332159621,1720995043718,-500.0,0.00024657,2]
[332159623,1720995043727,-507.5642997,0.00024657,2]
[332159625,1720995043736,-523.63624665,0.00024657,2]
[332159627,1720995043746,-500.0,0.00024657,2]
[332159629,1720995043756,-500.0,0.00024657,2]
[332159631,1720995043765,-500.0,0.00024657,2]
[332159633,1720995043774,-500.0,0.00024657,2]
[332159635,1720995043783,-500.0,0.00024657,2]
[332159637,1720995043792,-1000.0,0.00024657,5]
[332159638,1720995043801,-500.0,0.00024657,2]
[332159640,1720995043810,-500.0,0.00024657,2]
[332159642,1720995043820,-500.0,0.00024657,2]
[332159644,1720995043829,-500.0,0.00024657,2]
[332159646,1720995043838,-500.0,0.00024657,2]
[332159648,1720995043847,-500.0,0.00024657,2]
[332159650,1720995043857,-500.0,0.00024657,2]
[332159652,1720995043866,-500.0,0.00024657,2]
[332159654,1720995043875,-535.248463,0.00024657,2]
[332159656,1720995043885,-500.0,0.00024657,2]
[332159658,1720995043894,-500.0,0.00024657,2]
[332159660,1720995043903,-500.0,0.00024657,2]
[332159662,1720995043912,-500.0,0.00024657,2]